bitfinex-derivatives/quotes_BTCF0:USTF0_20250417
["timestamp","ask_amount","ask_price","bid_price","bid_amount"]
[1744927353180,0.006,85069.0,85068.0,0.1834552]
[1744927353368,0.006,85069.0,85068.0,0.3010058]
[1744927353570,0.1505289,85084.0,85083.0,0.1175299]
[1744927353871,0.1505289,85084.0,85083.0,0.4783299]
[1744927354069,0.1565289,85084.0,85083.0,0.4783299]
[1744927354476,0.1565289,85084.0,85083.0,0.5396299]
[1744927356383,0.006,85084.0,85083.0,0.5396299]
[1744927356584,0.1235285,85084.0,85083.0,0.5396299]
[1744927356877,0.1175313,85082.0,85081.0,0.07468]
[1744927357180,0.1235313,85082.0,85081.0,0.1922127]
[1744927357576,0.1867313,85082.0,85081.0,0.1922127]
[1744927357776,0.1867313,85082.0,85081.0,0.07468]
[1744927358085,0.1175451,85072.0,85071.0,0.1488465]
[1744927358272,0.0587674,85080.0,85079.0,0.117534]
[1744927358273,0.0587676,85080.0,85079.0,0.117534]
[1744927358673,0.0905676,85080.0,85079.0,0.180434]
[1744927358874,0.1175328,85081.0,85080.0,0.1175327]
[1744927359179,0.1235328,85081.0,85080.0,0.1804327]
[1744927359385,0.1554128,85081.0,85080.0,0.1804327]
[1744927359588,0.1175423,85074.0,85073.0,0.1175437]
[1744927359782,0.3608,85075.0,85074.0,0.1763128]
[1744927359978,0.2729547,85081.0,85080.0,0.117534]
[1744927360281,0.2728747,85081.0,85080.0,0.117534]
[1744927360584,0.2729547,85081.0,85080.0,0.117534]
[1744927360782,0.0587711,85075.0,85068.0,0.0909749]
[1744927361080,0.1175437,85073.0,85072.0,0.1922251]
[1744927361581,0.1812437,85073.0,85072.0,0.1922251]
[1744927362277,0.1872437,85073.0,85072.0,0.1922251]
[1744927362875,0.1872437,85073.0,85072.0,0.07468]
[1744927363370,0.1175603,85061.0,85060.0,0.07468]
[1744927363977,0.1805603,85061.0,85060.0,0.07468]
[1744927364179,0.1865603,85061.0,85060.0,0.07468]
[1744927364781,0.1865603,85061.0,85060.0,0.1922417]
[1744927365582,0.1865603,85061.0,85060.0,0.2234417]
[1744927365978,0.1556603,85061.0,85060.0,0.2234417]
[1744927366177,0.1557403,85061.0,85060.0,0.2234417]
[1744927370091,0.1889403,85061.0,85060.0,0.2234417]
[1744927370389,0.00608,85061.0,85060.0,0.5842417]
[1744927370775,0.006,85061.0,85060.0,0.5842417]
[1744927370983,0.00608,85061.0,85060.0,0.5842417]
[1744927371281,0.1176403,85061.0,85060.0,0.5842417]
[1744927371696,8e-05,85061.0,85060.0,0.5842417]
[1744927373595,0.1176403,85061.0,85060.0,0.5842417]
[1744927375491,0.1176403,85061.0,85060.0,0.2234417]
[1744927375692,0.1176403,85061.0,85060.0,0.5842417]
[1744927375889,0.1176403,85061.0,85060.0,0.10588]
[1744927376186,0.1236403,85061.0,85060.0,0.2234417]
[1744927376593,0.1877403,85061.0,85060.0,0.2561417]
[1744927379390,0.1877403,85061.0,85060.0,0.2249417]
[1744927379595,0.1877403,85061.0,85060.0,0.10738]
[1744927379792,0.1877403,85061.0,85060.0,0.07468]
[1744927380099,0.1175617,85060.0,85059.0,0.0001763]
[1744927380390,0.1175755,85050.0,85049.0,0.1176569]
[1744927380781,0.1175755,85050.0,85049.0,0.1175769]
[1744927380993,0.1823755,85050.0,85049.0,0.1176569]
[1744927381190,0.1883755,85050.0,85049.0,0.1176569]
[1744927386793,0.1883755,85050.0,85049.0,8e-05]
[1744927390996,0.1175783,85048.0,85047.0,0.1175795]
[1744927391595,0.1175783,85048.0,85047.0,0.12120756]
[1744927392204,0.1235783,85048.0,85047.0,0.15350756]
[1744927396006,0.1235783,85048.0,85047.0,0.1498795]
[1744927396496,0.1235783,85048.0,85047.0,0.15350756]
[1744927397811,0.006,85048.0,85047.0,0.15350756]
[1744927398110,0.1175749,85051.0,85050.0,0.1175755]
[1744927399694,0.1175749,85051.0,85050.0,0.4783755]
[1744927399895,0.1175749,85051.0,85050.0,0.3608]
[1744927400101,0.1235749,85051.0,85050.0,0.4784555]
[1744927400502,0.1873749,85051.0,85050.0,0.4784555]
[1744927401105,0.1873749,85051.0,85050.0,0.4783755]
[1744927401506,0.1873749,85051.0,85050.0,0.48200356]
[1744927404909,0.1873749,85051.0,85050.0,0.12120356]
[1744927406012,0.1873749,85051.0,85050.0,0.1175755]
[1744927406612,0.1873749,85051.0,85050.0,0.12120356]
[1744927407009,0.1873749,85051.0,85050.0,0.18460356]
[1744927408608,0.1544749,85051.0,85050.0,0.18460356]
[1744927411013,0.1544749,85051.0,85050.0,0.1809755]
[1744927411511,0.1544749,85051.0,85050.0,0.18460356]
[1744927412319,0.1544749,85051.0,85050.0,0.06702806]
[1744927412620,0.1544749,85051.0,85050.0,0.18460356]
[1744927416018,0.1544749,85051.0,85050.0,0.1809755]
[1744927416416,0.1544749,85051.0,85050.0,0.18460356]
[1744927416617,0.00608,85051.0,85050.0,0.18460356]
[1744927417122,8e-05,85051.0,85050.0,0.18460356]
[1744927417719,0.1176541,85051.0,85050.0,0.18460356]
[1744927417921,0.1176541,85051.0,85050.0,0.21750356]
[1744927418421,8e-05,85051.0,85050.0,0.21750356]
[1744927418716,0.14898264,85063.0,85062.0,0.1175589]
[1744927418915,0.14898264,85063.0,85062.0,0.1943189]
[1744927418916,0.26654014,85063.0,85062.0,0.1943189]
[1744927419320,0.26662014,85063.0,85062.0,0.1943189]
[1744927421125,0.26654014,85063.0,85062.0,0.1943189]
[1744927421623,0.29664014,85063.0,85062.0,0.1943189]
[1744927422125,0.30264014,85063.0,85062.0,0.1943189]
[1744927422914,0.30264014,85063.0,85062.0,0.2593189]
[1744927423424,0.1476575,85063.0,85062.0,0.2593189]
[1744927428729,0.0587767,85066.0,85065.0,0.1175548]
[1744927428927,0.0587767,85066.0,85065.0,0.13334047]
[1744927429922,0.0588567,85066.0,85065.0,0.1175548]
[1744927431027,0.0587767,85066.0,85065.0,0.1175548]
[1744927435019,0.0587767,85066.0,85065.0,0.13330226]
[1744927435430,0.0587767,85066.0,85065.0,0.13330147]
[1744927435924,0.0587767,85066.0,85065.0,0.1175548]
[1744927436521,0.0587767,85066.0,85065.0,0.1806548]
[1744927441035,0.0587767,85066.0,85065.0,0.19640055]
[1744927442127,0.0587767,85066.0,85065.0,0.1806548]
[1744927442530,0.0001763,85071.0,85070.0,0.1175479]
[1744927442732,0.0001763,85071.0,85070.0,0.4783479]
[1744927442933,0.1177228,85071.0,85069.0,0.0626]
[1744927443136,0.1177228,85071.0,85070.0,0.1175479]
[1744927443642,0.1177228,85071.0,85070.0,0.1831479]
[1744927445827,0.1177228,85071.0,85070.0,0.1506479]
[1744927446321,0.1237228,85071.0,85070.0,0.1506479]
[1744927447224,0.1177228,85071.0,85070.0,0.1506479]
[1744927448831,0.0001763,85071.0,85070.0,0.1506479]
[1744927449033,0.0001763,85071.0,85070.0,0.19741763]
[1744927449230,0.0001763,85071.0,85070.0,0.20341763]
[1744927449433,0.0002563,85071.0,85070.0,0.20341763]
[1744927449826,0.1178028,85071.0,85070.0,0.20341763]
[1744927450230,0.1238028,85071.0,85070.0,0.19741763]
[1744927450736,0.1238028,85071.0,85070.0,0.19741484]
[1744927450929,0.1238028,85071.0,85070.0,0.19741483]
[1744927451327,0.1178028,85071.0,85070.0,0.19741542]
[1744927453135,0.0002563,85071.0,85070.0,0.19741542]
[1744927453336,0.0002563,85071.0,85070.0,0.55821542]
[1744927453739,0.0001763,85071.0,85070.0,0.55821542]
[1744927453929,0.0002563,85071.0,85070.0,0.55821542]
[1744927454131,0.1178028,85071.0,85070.0,0.55821542]
[1744927455538,0.1178028,85071.0,85070.0,0.5424479]
[1744927455737,0.1178028,85071.0,85070.0,0.55840181]
[1744927459242,0.1178028,85071.0,85070.0,0.55841481]
[1744927459642,0.0002563,85071.0,85070.0,0.55841481]
[1744927459948,0.1178028,85071.0,85070.0,0.55841481]
[1744927461036,0.1178028,85071.0,85070.0,0.55837227]
[1744927462244,0.1178028,85071.0,85070.0,0.5424479]
[1744927462645,0.1507028,85071.0,85070.0,0.5424479]
[1744927463348,0.1507028,85071.0,85070.0,0.55821541]
[1744927464244,0.1507028,85071.0,85070.0,0.5424479]
[1744927465442,0.1829028,85071.0,85070.0,0.5424479]
[1744927466542,0.1829028,85071.0,85070.0,0.6184879]
[1744927471557,0.0002563,85071.0,85070.0,0.6184879]
[1744927471745,0.0001763,85071.0,85070.0,0.6184879]
[1744927472052,0.0002563,85071.0,85070.0,0.6184879]
[1744927473650,0.1178028,85071.0,85070.0,0.6184879]
[1744927478052,0.1175561,85064.0,85063.0,0.17953307]
[1744927478254,0.1175561,85064.0,85063.0,0.37277057]
[1744927479142,0.1864561,85064.0,85063.0,0.37277057]
[1744927480947,0.1864561,85064.0,85063.0,0.1932375]
[1744927485148,0.1804561,85064.0,85063.0,0.1932375]
[1744927485348,0.1804561,85064.0,85063.0,0.2239375]
[1744927485562,0.1493561,85064.0,85063.0,0.2239375]
[1744927485855,0.1494361,85064.0,85063.0,0.2239375]
[1744927489353,0.1494361,85064.0,85063.0,0.2399632]
[1744927490760,8e-05,85064.0,85063.0,0.2399632]
[1744927491965,0.1175537,85066.0,85065.0,0.1175548]
[1744927492161,0.1175537,85066.0,85065.0,0.1335805]
[1744927492965,0.00010801,85070.0,85069.0,0.1175492]
[1744927493161,0.1175479,85070.0,85069.0,0.4943749]
[1744927493365,0.1176279,85070.0,85069.0,0.0462257]
[1744927493665,0.1791279,85070.0,85069.0,0.1637749]
[1744927493861,0.1791279,85070.0,85069.0,0.1792643]
[1744927496464,0.1791279,85070.0,85069.0,0.1632386]
[1744927500867,0.1791279,85070.0,85069.0,0.1477492]
[1744927502362,0.1791279,85070.0,85069.0,0.19513882]
[1744927502564,0.1176279,85070.0,85069.0,0.19513882]
[1744927503170,0.1482279,85070.0,85069.0,0.19513882]
[1744927503759,0.1482279,85070.0,85069.0,0.1796492]
[1744927504465,0.1482279,85070.0,85069.0,0.0302]
[1744927504660,0.1482279,85070.0,85056.0,0.07564]
[1744927504661,0.0587799,85062.0,85056.0,0.07564]
[1744927504860,0.1175658,85057.0,85056.0,0.07564]
[1744927505060,0.1175658,85057.0,85056.0,0.10714]
[1744927505367,0.1175658,85057.0,85056.0,0.1932072]
[1744927505771,0.1806658,85057.0,85056.0,0.1932072]
[1744927505973,0.1806658,85057.0,85056.0,0.1175672]
[1744927506157,0.1866658,85057.0,85056.0,0.1175672]
[1744927508163,0.1866658,85057.0,85056.0,0.1796672]
[1744927510469,0.1866658,85057.0,85056.0,0.1477672]
[1744927511878,0.0691,85057.0,85054.0,0.0001763]
[1744927512174,0.1175686,85055.0,85054.0,0.1177463]
[1744927513068,0.1866686,85055.0,85054.0,0.1177463]
[1744927514472,0.1542686,85055.0,85054.0,0.1177463]
[1744927514667,0.1236486,85055.0,85054.0,0.1489463]
[1744927515076,0.1176486,85055.0,85054.0,0.1489463]
[1744927519881,0.1176486,85055.0,85054.0,0.1177463]
[1744927521279,0.1176486,85055.0,85054.0,0.1506463]
[1744927524088,0.4784486,85055.0,85054.0,0.0001763]
[1744927524273,0.4844486,85055.0,85054.0,0.0001763]
[1744927527589,0.4844486,85055.0,85054.0,0.0308763]
[1744927529382,0.57420235,85055.0,85054.0,0.0308763]
[1744927532085,0.21340235,85055.0,85054.0,0.0308763]
[1744927532282,0.21340235,85055.0,85054.0,0.0001763]
[1744927532485,0.27860235,85055.0,85054.0,0.0001763]
[1744927535791,0.0587867,85052.0,85046.0,0.0001458]
[1744927535984,0.4783796,85047.0,85046.0,0.0001458]
[1744927536184,0.4783796,85047.0,85045.0,0.0319]
[1744927536185,0.117581,85046.0,85045.0,0.0319]
[1744927536394,0.150181,85046.0,85045.0,0.0319]
[1744927537181,0.156181,85046.0,85045.0,0.0319]
[1744927542292,0.150181,85046.0,85045.0,0.0319]
[1744927544402,0.181681,85046.0,85045.0,0.0319]
[1744927546704,0.27152117,85046.0,85045.0,0.0319]
[1744927547990,0.24002117,85046.0,85045.0,0.0319]
[1744927554604,0.27172117,85046.0,85045.0,0.0319]
[1744927556411,0.28376705,85046.0,85045.0,0.0319]
[1744927557296,0.31476705,85046.0,85045.0,0.0319]
[1744927557503,0.30272117,85046.0,85045.0,0.0319]
[1744927557894,0.27172117,85046.0,85045.0,0.0319]
[1744927558099,0.1175921,85038.0,85037.0,0.0001763]
[1744927558408,0.4783921,85038.0,85037.0,0.0001763]
[1744927559195,0.5425921,85038.0,85037.0,0.0001763]
[1744927560998,0.5094921,85038.0,85037.0,0.0001763]
[1744927561204,0.4783921,85038.0,85037.0,0.0001763]
[1744927562502,0.4783921,85038.0,85037.0,0.0002563]
[1744927562697,0.5423921,85038.0,85037.0,0.0002563]
[1744927567117,0.5483921,85038.0,85037.0,0.0002563]
[1744927569111,0.1175962,85035.0,85034.0,0.064]
[1744927569607,0.1785962,85035.0,85034.0,0.064]
[1744927570209,0.1845962,85035.0,85034.0,0.064]
[1744927572215,0.1785962,85035.0,85034.0,0.064]
[1744927574120,0.1482962,85035.0,85034.0,0.064]
[1744927578226,0.1790962,85035.0,85034.0,0.064]
[1744927582125,0.5398962,85035.0,85034.0,0.064]
[1744927583021,0.4783962,85035.0,85034.0,0.064]
[1744927583221,0.5415962,85035.0,85034.0,0.064]
[1744927584823,0.1176004,85032.0,85031.0,0.000108]
[1744927585025,0.1176045,85029.0,85028.0,0.0636]
[1744927585425,0.1494045,85029.0,85028.0,0.06368]
[1744927587326,0.1796045,85029.0,85028.0,0.06368]
[1744927587721,0.2993914,85029.0,85028.0,0.06368]
[1744927588128,0.2373914,85029.0,85028.0,0.06368]
[1744927589331,0.2673914,85029.0,85028.0,0.06368]
[1744927590037,0.6281914,85029.0,85028.0,0.06368]
[1744927591340,0.59833378,85029.0,85028.0,0.06368]
[1744927594437,0.23753378,85029.0,85028.0,0.06368]
[1744927595637,0.2673914,85029.0,85028.0,0.06368]
[1744927596144,0.2673914,85029.0,85028.0,0.03198]
[1744927596441,0.2975914,85029.0,85028.0,0.03198]
[1744927596633,0.2975914,85029.0,85028.0,0.0319]
[1744927596834,0.2975914,85029.0,85028.0,0.03198]
[1744927597142,0.3035914,85029.0,85028.0,0.03198]
[1744927597334,0.3035914,85029.0,85028.0,0.09748]
[1744927599137,0.2975914,85029.0,85028.0,0.09748]
[1744927599329,0.1778045,85029.0,85028.0,0.09748]
[1744927600841,0.0588054,85025.0,85021.0,0.000108]
[1744927601037,0.1204057,85024.0,85023.0,0.032]
[1744927601245,0.1204057,85024.0,85019.0,0.0311]
[1744927601246,0.0588078,85021.0,85019.0,0.0311]
[1744927601439,0.178917,85020.0,85019.0,0.0311]
[1744927601641,0.0588099,85018.0,85007.0,0.25417307]
[1744927601942,0.0588136,85013.0,85012.0,0.000108]
[1744927602142,0.1176322,85009.0,85008.0,0.3608]
[1744927603043,0.1176322,85009.0,85008.0,0.360908]
[1744927604348,0.1176322,85009.0,85008.0,0.425408]
[1744927604846,0.1176322,85009.0,85008.0,0.455408]
[1744927605649,0.1176322,85009.0,85008.0,0.5730416]
[1744927606048,0.1176322,85009.0,85008.0,0.455408]
[1744927606239,0.1176322,85009.0,85008.0,0.461408]
[1744927607652,0.1176322,85009.0,85008.0,0.5790416]
[1744927609545,0.1176322,85009.0,85008.0,0.100608]
[1744927609746,0.1176322,85009.0,85008.0,0.461408]
[1744927611047,0.1507322,85009.0,85008.0,0.461408]
[1744927613048,0.1507322,85009.0,85008.0,0.5790416]
[1744927613249,0.1507322,85009.0,85008.0,0.461408]
[1744927615657,0.1507322,85009.0,85008.0,0.5790416]
[1744927615946,0.1507322,85009.0,85008.0,0.461408]
[1744927616143,0.1831322,85009.0,85008.0,0.461408]
[1744927616841,0.1831322,85009.0,85008.0,0.46138]
[1744927617249,0.1831322,85009.0,85008.0,0.45538]
[1744927618753,0.1831322,85009.0,85008.0,0.36088]
[1744927619752,0.1831322,85009.0,85008.0,8e-05]
[1744927621148,0.117635,85007.0,85006.0,0.0311]
[1744927621847,0.183635,85007.0,85006.0,0.0311]
[1744927622049,0.066,85007.0,85005.0,0.030408]
[1744927622252,0.4784364,85006.0,85005.0,0.000108]
[1744927622745,0.1176377,85005.0,85004.0,0.00017641]
[1744927623145,0.1812377,85005.0,85004.0,0.00017641]
[1744927624248,0.1506377,85005.0,85004.0,0.45467641]
[1744927625153,0.1506377,85005.0,85004.0,0.57231551]
[1744927625343,0.1506377,85005.0,85004.0,0.45467641]
[1744927632560,0.1506377,85005.0,85004.0,0.36097641]
[1744927633859,0.1506377,85005.0,85004.0,0.00017641]
[1744927634960,0.1824377,85005.0,85004.0,0.00017641]
[1744927635549,0.1824377,85005.0,85004.0,0.03137641]
[1744927635749,0.1824377,85005.0,85004.0,0.06237641]
[1744927636357,0.1824377,85005.0,85004.0,0.00017641]
[1744927638154,0.1824377,85005.0,85004.0,0.03137641]
[1744927640365,0.1824377,85005.0,85004.0,0.06197641]
[1744927640562,0.1176367,85006.0,85005.0,0.1764532]
[1744927640753,0.1176367,85006.0,85005.0,0.2386532]
[1744927640954,0.1176367,85006.0,85005.0,0.1210182]
[1744927641160,0.1176367,85006.0,85005.0,0.1270182]
[1744927641962,0.1176367,85006.0,85005.0,0.0682]
[1744927642261,0.1484367,85006.0,85005.0,0.1798377]
[1744927647256,0.1484367,85006.0,85005.0,0.5406377]
[1744927647461,0.1176367,85006.0,85005.0,0.5406377]
[1744927648369,0.1489367,85006.0,85005.0,0.5406377]
[1744927649565,0.1796367,85006.0,85005.0,0.5406377]
[1744927649773,0.1796367,85006.0,85005.0,0.1798377]
[1744927657061,0.1796367,85006.0,85005.0,0.0622]
[1744927657263,0.1176377,85005.0,85004.0,0.00017641]
[1744927657467,0.2141377,85005.0,85004.0,0.00017641]
[1744927658161,0.2201377,85005.0,85004.0,0.00025641]
[1744927658976,0.23169238,85005.0,85004.0,0.00025641]
[1744927661282,0.22569238,85005.0,85004.0,0.00025641]
[1744927661861,0.2141377,85005.0,85004.0,0.00025641]
[1744927662268,0.2201377,85005.0,85004.0,0.00025641]
[1744927662879,0.1896377,85005.0,85004.0,0.00025641]
[1744927663076,0.1896377,85005.0,85004.0,0.06415641]
[1744927663279,0.1836377,85005.0,85004.0,0.06415641]
[1744927666878,0.1836377,85005.0,85004.0,0.00025641]
[1744927667073,0.2165377,85005.0,85004.0,0.00025641]
[1744927671482,0.2165377,85005.0,84992.0,0.00026572]
[1744927671483,0.7097,85005.0,84992.0,0.00026572]
[1744927671680,0.0588297,84990.0,84984.0,0.1176663]
[1744927671889,0.0588316,84987.0,84986.0,0.000108]
[1744927672475,0.0588316,84987.0,84986.0,0.030808]
[1744927673273,0.0588316,84987.0,84986.0,0.062108]
[1744927673878,0.0588316,84987.0,84986.0,0.07091001]
[1744927681886,0.0588316,84987.0,84986.0,0.18857401]
[1744927682990,0.0588316,84987.0,84986.0,0.07091001]
[1744927684287,0.0588316,84987.0,84986.0,0.18857401]
[1744927689290,0.0588316,84987.0,84986.0,0.19457401]
[1744927692198,0.0916316,84987.0,84986.0,0.19457401]
[1744927693190,0.0916316,84987.0,84986.0,0.18857401]
[1744927696201,0.1244316,84987.0,84986.0,0.18857401]
[1744927702209,0.1244316,84987.0,84986.0,0.19457401]
[1744927703199,0.1244316,84987.0,84986.0,0.18857401]
[1744927705201,0.1244316,84987.0,84986.0,0.26201401]
[1744927706014,0.0916316,84987.0,84986.0,0.26201401]
[1744927708214,0.0916316,84987.0,84986.0,0.26801401]
[1744927708928,0.08989972,84991.0,84990.0,0.1176585]
[1744927709123,0.08989972,84991.0,84990.0,0.1553585]
[1744927709326,0.08989972,84991.0,84990.0,0.2187585]
[1744927709726,0.20755682,84991.0,84990.0,0.2187585]
[1744927713131,0.11996331,84995.0,84994.0,0.117653]
[1744927713333,0.11996331,84995.0,84994.0,0.257653]
[1744927714127,0.11996331,84995.0,84994.0,0.325853]
[1744927714826,0.00017641,84995.0,84994.0,0.325853]
[1744927716420,0.2374233,85006.0,85005.0,0.1176377]
[1744927716625,0.2374233,85006.0,85005.0,0.2576377]
[1744927717434,0.2374233,85006.0,85005.0,0.1176377]
[1744927717630,0.2694233,85006.0,85005.0,0.1176377]
[1744927718228,0.1496364,85006.0,85005.0,0.1176377]
[1744927718428,0.1496364,85006.0,85005.0,0.1487377]
[1744927722431,0.0588098,85019.0,85013.0,0.1176267]
[1744927722632,0.4784202,85018.0,85013.0,0.1176267]
[1744927722827,0.4784202,85018.0,85017.0,0.1176211]
[1744927722828,0.3608,85018.0,85017.0,0.1176211]
[1744927723032,0.3608,85018.0,85017.0,0.1909011]
[1744927723224,0.3608,85018.0,85017.0,0.1969011]
[1744927723424,0.00010801,85026.0,85017.0,0.44008]
[1744927723633,0.1176097,85026.0,85025.0,0.1176101]
[1744927723833,0.1176897,85026.0,85025.0,0.2476101]
[1744927724033,0.1176097,85026.0,85025.0,0.2476101]
[1744927724335,8e-05,85026.0,85025.0,0.3124145]
[1744927724534,0.14898264,85028.0,85027.0,0.1176073]
[1744927724841,0.14906264,85028.0,85027.0,0.3776073]
[1744927725231,0.14906264,85028.0,85027.0,0.4470073]
[1744927725739,0.0301,85033.0,85032.0,0.1176004]
[1744927725934,0.147699,85033.0,85032.0,0.3208804]
[1744927726332,0.147699,85033.0,85032.0,0.4229804]
[1744927726942,0.147699,85033.0,85032.0,0.2603804]
[1744927727241,0.147699,85033.0,85032.0,0.26311432]
[1744927727432,0.147699,85033.0,85032.0,0.23021432]
[1744927738651,0.0301,85033.0,85032.0,0.23021432]
[1744927738844,0.11774151,85038.0,85037.0,0.1175935]
[1744927739043,0.23533631,85038.0,85037.0,0.1175935]
[1744927739240,0.2351905,85038.0,85037.0,0.1175935]
[1744927739440,0.2352705,85038.0,85037.0,0.1175935]
[1744927739641,0.2352705,85038.0,85037.0,0.1488935]
[1744927739947,0.5960705,85038.0,85037.0,0.1488935]
[1744927741748,0.5960705,85038.0,85037.0,0.0313]
[1744927741957,0.5960705,85038.0,85037.0,0.1488935]
[1744927742555,0.6584705,85038.0,85037.0,0.1488935]
[1744927744150,0.6584705,85038.0,85037.0,0.1548935]
[1744927745148,0.6584705,85038.0,85037.0,0.1488935]
[1744927749951,0.6584705,85038.0,85037.0,0.1814935]
[1744927751861,0.2976705,85038.0,85037.0,0.1814935]
[1744927756060,0.2976705,85038.0,85037.0,0.0639]
[1744927756357,0.2976705,85038.0,85037.0,0.1814935]
[1744927757955,0.2976705,85038.0,85037.0,0.0313]
[1744927758158,0.2976705,85038.0,85037.0,0.10454]
[1744927758554,0.2976705,85038.0,85037.0,0.2221335]
[1744927759053,0.2976705,85038.0,85037.0,0.10454]
[1744927759460,0.2976705,85038.0,85037.0,0.13564]
[1744927760659,0.2976705,85038.0,85037.0,0.2532335]
[1744927762664,0.6584705,85038.0,85037.0,0.2532335]
[1744927765155,0.2976705,85038.0,85037.0,0.2532335]
[1744927769766,0.1800748,85038.0,85037.0,0.2532335]
[1744927770081,8e-05,85038.0,85037.0,0.2532335]
[1744927770370,0.4783893,85040.0,85039.0,0.1175907]
[1744927771061,0.4783893,85040.0,85039.0,0.1800907]
[1744927773173,0.3608,85040.0,85039.0,0.1800907]
[1744927773873,0.36088,85040.0,85039.0,0.1800907]
[1744927774176,0.36088,85040.0,85039.0,0.1860907]
[1744927775270,8e-05,85040.0,85039.0,0.1860907]
[1744927776077,0.1176693,85040.0,85039.0,0.1860907]
[1744927777271,8e-05,85040.0,85039.0,0.1860907]
[1744927787378,0.03158,85040.0,85039.0,0.1860907]
[1744927790984,0.1491693,85040.0,85039.0,0.1860907]
[1744927791183,0.1491693,85040.0,85039.0,0.1800907]
[1744927793184,0.1491693,85040.0,85039.0,0.1860907]
[1744927794184,0.1491693,85040.0,85039.0,0.1800907]
[1744927795586,0.2129693,85040.0,85039.0,0.2213307]
[1744927796287,0.2129693,85040.0,85039.0,0.2514307]
[1744927805990,8e-05,85040.0,85039.0,0.2514307]
[1744927806191,0.1175838,85044.0,85043.0,0.1175852]
[1744927806387,0.1175838,85044.0,85043.0,0.2142852]
[1744927806786,0.1488838,85044.0,85043.0,0.2142852]
[1744927810603,0.0313,85044.0,85043.0,0.2142852]
[1744927810898,0.1488838,85044.0,85043.0,0.2142852]
[1744927811289,0.1488838,85044.0,85043.0,0.2874852]
[1744927812100,0.11769041,85045.0,85044.0,0.1175838]
[1744927812600,0.14989041,85045.0,85044.0,0.1808838]
[1744927814194,0.03230801,85045.0,85044.0,0.1808838]
[1744927814392,0.14989041,85045.0,85044.0,0.1808838]
[1744927819204,0.14989041,85045.0,85044.0,0.1868838]
[1744927819406,0.18239041,85045.0,85044.0,0.1868838]
[1744927819606,0.21419041,85045.0,85044.0,0.1868838]
[1744927820206,0.21419041,85045.0,85044.0,0.1808838]
[1744927821912,0.21419041,85045.0,85044.0,0.0303]
[1744927822206,0.1175907,85039.0,85038.0,0.2351813]
[1744927822405,0.1175907,85039.0,85038.0,0.3083813]
[1744927823020,0.1804907,85039.0,85038.0,0.3083813]
[1744927827930,0.1804907,85039.0,85038.0,0.3740813]
[1744927833425,0.1804907,85039.0,85038.0,0.3008813]
[1744927833621,0.1804907,85039.0,85038.0,0.3740813]
[1744927836537,0.1175948,85036.0,85035.0,0.00017641]
[1744927836728,0.1175948,85036.0,85035.0,0.19097261]
[1744927837232,0.1175948,85036.0,85035.0,0.07337641]
[1744927837433,0.1787948,85036.0,85035.0,0.00017641]
[1744927837628,0.1787948,85036.0,85035.0,0.19097261]
[1744927838031,0.1787948,85036.0,85035.0,0.07337641]
[1744927838532,0.1787948,85036.0,85035.0,0.19097261]
[1744927840539,0.1175924,85038.0,85037.0,0.2351827]
[1744927840936,0.1495724,85038.0,85037.0,0.2351827]
[1744927841137,0.1495724,85038.0,85037.0,0.2662827]
[1744927843744,8e-05,85038.0,85037.0,0.2662827]
[1744927843933,0.00038484,85051.0,85046.0,0.0587898]
[1744927844137,0.000188,85051.0,85050.0,0.1175755]
[1744927844439,0.0322,85063.0,85050.0,0.1175755]
[1744927844440,0.0587832,85057.0,85054.0,0.11757]
[1744927844632,0.0808622,85055.0,85054.0,0.14757]
[1744927844837,0.1984308,85055.0,85054.0,0.14757]
[1744927845035,0.26734741,85055.0,85054.0,0.14757]
[1744927845237,0.26734741,85055.0,85054.0,0.15357]
[1744927845541,0.26742741,85055.0,85054.0,0.15357]
[1744927849148,0.1176486,85055.0,85054.0,0.15357]
[1744927851133,0.1176486,85055.0,85054.0,0.14757]
[1744927851538,0.1176486,85055.0,85054.0,0.21047]
[1744927852043,8e-05,85055.0,85054.0,0.21047]
[1744927852249,0.00017641,85063.0,85062.0,0.1175589]
[1744927852445,0.00017641,85063.0,85062.0,0.5515589]
[1744927852446,0.11773391,85063.0,85062.0,0.5515589]
[1744927852746,0.11773391,85063.0,85062.0,0.6143589]
[1744927852949,0.11781391,85063.0,85062.0,0.6143589]
[1744927853140,0.11781391,85063.0,85062.0,0.6203589]
[1744927853335,0.00025641,85063.0,85062.0,0.6303589]
[1744927853649,0.11781391,85063.0,85062.0,0.6303589]
[1744927861443,0.00025641,85063.0,85062.0,0.6303589]
[1744927861646,0.00017641,85063.0,85062.0,0.6303589]
[1744927861848,0.00025641,85063.0,85062.0,0.6303589]
[1744927862656,0.11781391,85063.0,85062.0,0.6303589]
[1744927868759,0.00025641,85063.0,85062.0,0.6303589]
[1744927869260,0.00017641,85063.0,85062.0,0.6303589]
[1744927869460,0.00025641,85063.0,85062.0,0.6303589]
[1744927878463,0.00025641,85063.0,85062.0,2.1303589]
[1744927879874,0.00025641,85063.0,85062.0,2.4911589]
[1744927880170,1e-08,85063.0,85062.0,2.4911589]
[1744927884069,0.00010801,85075.0,85070.0,0.0587732]
[1744927884266,0.0587614,85089.0,85076.0,0.1175396]
[1744927884467,0.00010801,85078.0,85077.0,0.1175382]
[1744927884667,0.1479232,85088.0,85087.0,0.1175244]
[1744927885070,0.03050801,85088.0,85087.0,0.1175244]
[1744927885372,0.14803101,85088.0,85087.0,0.1175244]
[1744927887669,0.14803101,85088.0,85087.0,0.12639396]
[1744927887878,0.21093101,85088.0,85087.0,0.12639396]
[1744927888071,0.03050801,85088.0,85087.0,0.1380202]
[1744927888378,0.0306,85092.0,85091.0,0.1175188]
[1744927888676,0.0615,85092.0,85091.0,0.8314788]
[1744927889175,0.0615,85092.0,85091.0,0.8945788]
[1744927890479,0.0309,85092.0,85091.0,0.8945788]
[1744927891478,0.0309,85092.0,85091.0,2.3945788]
[1744927892475,0.0309,85092.0,85091.0,2.2545788]
[1744927893271,0.0309,85092.0,85091.0,2.2605788]
[1744927894279,0.0309,85092.0,85091.0,2.2545788]
[1744927906790,0.0616,85092.0,85091.0,2.2545788]
[1744927909676,0.0616,85092.0,85091.0,1.8937788]
[1744927909877,0.0616,85092.0,85091.0,2.2545788]
[1744927910889,0.1791175,85092.0,85091.0,0.07312]
[1744927911084,0.5787175,85092.0,85091.0,0.07312]
[1744927911487,0.5787175,85092.0,85091.0,0.1906388]
[1744927912781,0.5787175,85092.0,85091.0,0.07312]
[1744927912982,0.5787175,85092.0,85091.0,0.1906388]
[1744927916890,0.2179175,85092.0,85091.0,0.1906388]
[1744927917091,0.5787175,85092.0,85091.0,0.07312]
[1744927918085,0.0587633,85086.0,85085.0,0.07312]
[1744927918388,0.117534,85080.0,85079.0,0.0001763]
[1744927918691,0.478334,85080.0,85079.0,0.0001763]
[1744927918896,0.1175423,85074.0,85054.0,0.031]